bitfinex-derivatives/quotes_ETHF0:USTF0_20251103
["timestamp","ask_amount","ask_price","bid_price","bid_amount"]
[1762150622875,0.1793,3724.1,3724.0,0.1403]
[1762150623075,11.36912719,3724.2,3724.1,0.2251]
[1762150623278,10.33912719,3724.2,3724.1,0.2251]
[1762150623475,11.67510493,3725.4,3724.6,0.2251]
[1762150623680,1.80812719,3725.1,3725.0,0.1322]
[1762150623881,12.48361655,3725.1,3725.0,0.1322]
[1762150624076,2.92261655,3725.1,3725.0,0.1322]
[1762150624275,12.48361655,3725.1,3725.0,0.1322]
[1762150624476,2.74331655,3725.1,3725.0,0.3573]
[1762150624775,12.30431655,3725.1,3725.0,0.3573]
[1762150624970,12.48361655,3725.1,3725.0,0.1322]
[1762150625274,0.1793,3724.7,3724.6,0.00203652]
[1762150625476,11.36912719,3725.1,3724.6,0.22713652]
[1762150625680,0.1793,3724.7,3724.6,0.00203652]
[1762150625984,0.44441422,3724.7,3724.6,0.00203652]
[1762150626280,0.26511422,3724.7,3724.6,0.22713652]
[1762150626777,0.44441422,3724.7,3724.6,0.00203652]
[1762150626978,0.26511422,3724.7,3724.6,0.22713652]
[1762150627167,5.29311422,3724.7,3724.6,0.22713652]
[1762150627370,5.028,3724.7,3724.6,0.22713652]
[1762150627576,1.80812719,3725.1,3724.6,0.22713652]
[1762150627770,10.49581163,3725.0,3724.6,0.22713652]
[1762150627971,0.93581163,3724.9,3724.6,0.22713652]
[1762150628273,0.26515173,3724.8,3724.6,0.22713652]
[1762150628471,0.26515173,3724.7,3724.6,0.22713652]
[1762150629074,0.26515173,3724.9,3724.6,0.22713652]
[1762150629274,0.26515173,3724.8,3724.6,0.22713652]
[1762150629476,0.26515173,3724.7,3724.6,0.22713652]
[1762150630182,0.26515173,3724.9,3724.6,0.22713652]
[1762150630384,0.26515173,3724.8,3724.6,0.22713652]
[1762150630577,0.26515173,3724.7,3724.6,0.22713652]
[1762150631881,0.44445173,3724.7,3724.6,0.00203652]
[1762150632677,1.11531809,3724.7,3724.6,0.00203652]
[1762150633277,0.26515173,3724.7,3724.6,0.22713652]
[1762150633483,9.82415173,3724.7,3724.6,0.22713652]
[1762150633680,9.82315173,3724.7,3724.6,0.22713652]
[1762150634086,0.26515173,3724.7,3724.6,0.22713652]
[1762150634972,3.21523212,3726.0,3725.4,0.2172]
[1762150635175,1.80812719,3726.5,3725.7,0.2172]
[1762150635379,0.26399417,3726.4,3725.7,0.2172]
[1762150635579,9.558,3726.1,3725.7,0.2172]
[1762150635781,0.26399417,3726.0,3725.7,0.2172]
[1762150635980,0.26662094,3725.8,3725.7,0.2172]
[1762150636677,4.171,3726.7,3726.5,0.137]
[1762150636881,1.80812719,3727.0,3726.5,0.137]
[1762150636882,0.67052334,3726.6,3726.5,0.3542]
[1762150637283,1.80812719,3727.0,3726.9,0.2172]
[1762150637479,7.17812719,3727.0,3726.5,0.137]
[1762150637683,1.8110912,3727.0,3726.9,0.2172]
[1762150638385,1.8110912,3727.0,3726.5,0.137]
[1762150638780,1.8110912,3727.0,3726.9,0.2172]
[1762150640289,1.9919912,3727.0,3726.5,0.137]
[1762150641898,1.8110912,3727.0,3726.9,0.2172]
[1762150643095,0.1809,3726.6,3726.5,0.137]
[1762150644898,0.1809,3726.6,3726.0,0.137]
[1762150645202,0.1809,3726.1,3726.0,0.137]
[1762150645703,1.80812719,3726.4,3726.0,0.137]
[1762150646203,0.1809,3726.1,3726.0,0.137]
[1762150646502,1.80812719,3726.4,3726.0,0.3604]
[1762150647311,1.80812719,3726.4,3726.3,0.2234]
[1762150647600,1.80812719,3726.9,3726.5,0.1325]
[1762150648904,0.00296401,3727.0,3726.9,0.2234]
[1762150651196,1.40710493,3729.4,3728.2,0.2234]
[1762150651405,0.92604643,3729.3,3728.2,0.2234]
[1762150651601,1.80812719,3729.0,3728.2,0.2234]
[1762150651904,1.85222719,3729.0,3728.2,0.2234]
[1762150652103,1.85541346,3729.0,3728.2,0.22669916]
[1762150652295,1.81131346,3729.0,3728.2,0.22669916]
[1762150653206,4.21018627,3729.0,3728.5,0.1325]
[1762150653706,0.00318627,3729.0,3728.5,0.1325]
[1762150658815,1.99182719,3728.6,3728.5,0.1325]
[1762150662920,0.00318627,3729.0,3728.5,0.3559]
[1762150663812,0.00318627,3729.0,3728.9,0.2234]
[1762150664513,0.26030354,3729.0,3728.9,0.2234]
[1762150664720,0.00318627,3729.0,3728.9,0.2234]
[1762150667510,0.025,3729.7,3728.5,0.1325]
[1762150667511,0.025,3729.7,3729.6,0.2203]
[1762150668018,1.40710493,3731.3,3729.6,6.9235]
[1762150668221,0.92496088,3731.2,3729.5,0.1365]
[1762150668407,0.92496088,3731.1,3729.6,6.7016]
[1762150668607,1.80812719,3730.9,3729.6,6.7016]
[1762150668812,0.92496088,3730.8,3730.5,0.1365]
[1762150669015,1.80812719,3730.9,3730.5,0.1365]
[1762150669217,0.92437809,3730.8,3730.5,0.1365]
[1762150669416,1.80812719,3730.9,3730.5,0.1365]
[1762150669620,0.92380299,3730.8,3730.5,0.1365]
[1762150669820,1.80812719,3730.9,3730.5,0.1365]
[1762150670021,0.66671343,3730.8,3730.5,0.1365]
[1762150670213,1.80812719,3730.9,3730.5,0.1365]
[1762150670919,0.1865,3730.6,3730.5,0.1365]
[1762150671114,0.1865,3730.6,3730.0,0.1365]
[1762150671320,0.1865,3730.6,3730.5,0.1365]
[1762150671520,1.80812719,3730.9,3730.5,0.1365]
[1762150671823,0.1865,3730.6,3730.5,0.1365]
[1762150672323,0.1865,3730.6,3730.0,0.1365]
[1762150672525,0.1865,3730.1,3730.0,0.1365]
[1762150673219,1.80812719,3730.8,3730.0,26.3568]
[1762150673417,0.66594024,3730.7,3730.5,0.1365]
[1762150673613,1.80812719,3730.8,3730.5,0.1365]
[1762150673817,0.6659319,3730.7,3730.5,0.1365]
[1762150674020,1.80812719,3730.8,3730.5,0.1365]
[1762150674219,0.66593189,3730.7,3730.6,0.2203]
[1762150675020,0.00254216,3731.1,3731.0,0.3568]
[1762150675213,0.6684571,3731.1,3731.0,0.35964399]
[1762150675416,0.92523227,3731.1,3731.0,0.35964399]
[1762150676419,0.00254216,3731.1,3731.0,0.35964399]
[1762150676624,4.216e-05,3731.1,3731.0,0.35964399]
[1762150676823,4.216e-05,3731.1,3731.0,0.13934399]
[1762150677420,4.216e-05,3731.1,3731.0,0.35964399]
[1762150678112,0.18904216,3731.1,3731.0,0.00284399]
[1762150678326,0.8516831,3731.1,3731.0,0.13934399]
[1762150678624,0.8516831,3731.1,3731.0,0.00284399]
[1762150678814,1.10860429,3731.1,3731.0,0.00284399]
[1762150679017,1.10860429,3731.1,3731.0,0.13934399]
[1762150680224,1.10860429,3731.1,3731.0,0.00284399]
[1762150680921,12.63610321,3731.1,3731.0,0.00284399]
[1762150681224,0.0708,3731.0,3730.0,26.1365]
[1762150681426,0.91956213,3730.9,3730.0,26.1365]
[1762150681630,0.91956213,3730.8,3730.0,26.1365]
[1762150681928,0.91956213,3730.7,3730.6,0.2203]
[1762150682127,0.91956213,3730.7,3730.6,0.22283053]
[1762150683817,4.216e-05,3731.1,3731.0,0.1365]
[1762150684019,1.96310173,3733.5,3732.2,0.2203]
[1762150684224,0.0708,3733.5,3732.2,0.2203]
[1762150685017,1.99749892,3733.0,3732.0,0.1365]
[1762150685927,0.1862,3731.6,3731.0,0.1365]
[1762150686135,0.216,3732.0,3731.4,0.1365]
[1762150686436,0.0689,3732.6,3731.4,0.1365]
[1762150686625,3.006,3732.5,3731.4,0.1365]
[1762150687025,9.527,3732.7,3731.4,0.1365]
[1762150687732,9.527,3732.6,3731.4,0.1365]
[1762150688125,9.527,3732.8,3731.5,6.6992]
[1762150688329,9.527,3732.8,3731.4,0.1365]
[1762150691336,1.99749892,3732.3,3731.4,0.1365]
[1762150692930,11.52349892,3732.3,3731.4,0.1365]
[1762150693434,0.1862,3731.1,3730.6,0.00253053]
[1762150693638,0.1862,3730.7,3730.6,0.00253053]
[1762150693841,0.18816875,3730.7,3730.6,0.00253053]
[1762150694036,0.00196875,3730.7,3730.6,0.22283053]
[1762150695632,0.00196875,3730.7,3730.6,0.00253053]
[1762150695834,0.18836875,3730.7,3730.6,0.00253053]
[1762150696127,0.83770077,3730.7,3730.6,0.00253053]
[1762150696342,1.09121427,3730.7,3730.6,0.00253053]
[1762150697040,0.90481427,3730.7,3730.6,0.00253053]
[1762150697433,0.90481427,3730.7,3730.6,0.22783053]
[1762150698335,0.00196875,3730.7,3730.6,0.22783053]
[1762150698735,0.65226832,3730.7,3730.6,0.22783053]
[1762150699041,0.90614899,3730.7,3730.6,0.00253053]
[1762150700747,1.09254899,3730.7,3730.6,0.00253053]
[1762150701234,0.90614899,3730.7,3730.6,0.00253053]
[1762150702038,1.09254899,3730.7,3730.6,0.00253053]
[1762150705543,10.61971398,3730.7,3730.6,0.00253053]
[1762150706237,1.09271398,3730.7,3730.6,0.00253053]
[1762150709346,0.44241441,3730.7,3730.6,0.00253053]
[1762150710544,1.0880152,3730.7,3730.6,0.00253053]
[1762150711743,0.44241441,3730.7,3730.6,0.00253053]
[1762150713747,1.08759764,3730.7,3730.6,0.00253053]
[1762150715745,1.08741757,3730.7,3730.6,0.00253053]
[1762150717048,1.08741757,3730.7,3730.0,26.1311]
[1762150717049,0.1862,3730.1,3730.0,26.0]
[1762150717244,11.96456451,3730.1,3730.0,26.0]
[1762150717544,11.96456451,3730.1,3730.0,10.39932831]
[1762150717545,19.12641476,3730.1,3730.0,10.39932831]
[1762150717744,19.12641476,3730.1,3730.0,9.85262831]
[1762150717944,19.12641476,3730.1,3730.0,9.85598562]
[1762150719145,19.12641476,3730.1,3730.0,8.70508562]
[1762150719345,19.12641476,3730.1,3730.0,0.98474877]
[1762150720044,2.89701476,3730.1,3730.0,0.98474877]
[1762150720350,12.42501476,3730.1,3730.0,0.98474877]
[1762150720747,19.12741476,3730.1,3730.0,0.98474877]
[1762150720937,12.42501476,3730.1,3730.0,0.98474877]
[1762150721142,19.12741476,3730.1,3730.0,0.98474877]
[1762150721543,12.42501476,3730.1,3730.0,0.98474877]
[1762150721948,19.12741476,3730.1,3730.0,0.141]
[1762150722145,2.89701476,3730.1,3730.0,0.141]
[1762150722353,12.42501476,3730.1,3730.0,0.3645]
[1762150723050,12.42501476,3730.1,3730.0,0.36659649]
[1762150723553,12.42501476,3730.1,3730.0,0.14309649]
[1762150724340,2.89701476,3730.1,3730.0,0.14309649]
[1762150724545,12.42601476,3730.1,3730.0,0.36659649]
[1762150725153,12.42601476,3730.1,3730.0,0.14309649]
[1762150725853,12.43697293,3730.1,3730.0,0.14309649]
[1762150726852,2.90797293,3730.1,3730.0,0.14309649]
[1762150727150,12.43597293,3730.1,3730.0,0.14309649]
[1762150727941,12.43597293,3730.1,3729.5,0.141]
[1762150728139,0.91047401,3730.0,3729.5,0.141]
[1762150728351,12.94766225,3730.1,3729.5,0.141]
[1762150728352,0.91047401,3729.9,3729.5,0.141]
[1762150728555,0.91047401,3729.8,3729.5,0.141]
[1762150728848,10.43847401,3729.7,3729.5,0.141]
[1762150729045,0.91047401,3729.6,3729.5,0.1435637]
[1762150731150,7.61367401,3729.6,3729.5,0.2973]
[1762150731451,9.61117293,3729.6,3728.5,0.141]
[1762150731754,0.91047401,3729.5,3728.5,0.141]
[1762150731957,10.43847401,3729.4,3728.5,0.141]
[1762150732153,0.91047401,3729.3,3729.0,0.13917469]
[1762150732347,0.91047401,3729.2,3729.0,0.13917469]
[1762150732547,10.43947401,3729.1,3729.0,0.13917469]
[1762150733154,17.14347401,3729.1,3729.0,0.2973]
[1762150733356,13.85913626,3729.1,3728.0,0.28284936]
[1762150733652,1.99749892,3728.1,3728.0,0.28284936]
[1762150733856,12.43697293,3728.1,3728.0,0.28284936]
[1762150734157,12.43697293,3728.1,3728.0,0.28539557]
[1762150734458,12.24643809,3728.1,3727.5,0.2973]
[1762150734658,1.80696408,3727.6,3727.5,0.2973]
[1762150734955,10.43947401,3727.6,3727.5,0.5328]
[1762150735149,10.43947401,3727.6,3727.0,0.2973]
[1762150735150,10.64858716,3727.6,3727.0,0.2973]
[1762150735355,1.80696408,3727.1,3727.0,0.29979185]
[1762150735554,11.33596408,3727.1,3727.0,0.53529185]
[1762150736250,1.80696408,3727.1,3727.0,0.53529185]
[1762150736455,11.33696408,3727.1,3727.0,0.53529185]
[1762150737648,11.33696408,3727.1,3727.0,0.29979185]
[1762150738157,12.24674824,3727.1,3727.0,0.29979185]
[1762150739153,18.95474824,3727.1,3726.5,0.2973]
[1762150739357,1.80696408,3726.6,3726.5,0.2973]
[1762150739550,11.60053626,3726.6,3726.5,0.2973]
[1762150739961,11.60053626,3726.6,3726.5,0.30061519]
[1762150740364,11.60053626,3726.6,3726.5,0.2973]
[1762150740565,18.95474588,3726.6,3726.0,0.2973]
[1762150740757,18.95474588,3726.6,3725.5,0.2973]
[1762150740758,1.80696408,3726.1,3725.5,0.2973]
[1762150741060,1.80696408,3725.6,3725.5,0.2973]
[1762150741259,11.33796408,3725.6,3725.5,0.29933764]
[1762150741857,11.60090241,3725.6,3725.0,0.2973]
[1762150742059,1.80696408,3725.1,3725.0,0.2973]
[1762150742258,11.33796408,3725.1,3725.0,0.2973]
[1762150742463,11.33796408,3725.1,3724.5,0.2973]
[1762150742765,0.26253272,3725.0,3724.5,0.2973]
[1762150742954,0.26253272,3724.9,3724.7,0.02920255]
[1762150743155,9.532,3724.8,3724.7,0.02920255]
[1762150743761,9.74491659,3724.8,3724.7,0.02920255]
[1762150745563,10.00660135,3724.8,3724.7,0.02920255]
[1762150745865,10.00660135,3724.8,3724.0,0.2973]
[1762150746064,1.80696408,3724.3,3724.0,0.2973]
[1762150746265,9.534,3724.2,3724.0,0.2973]
[1762150746967,9.534,3724.2,3724.0,0.30078108]
[1762150749367,9.534,3724.2,3724.0,0.00348108]
[1762150749559,9.534,3724.2,3723.5,0.76853068]
[1762150749560,0.26103864,3724.1,3723.5,0.76853068]
[1762150749765,1.80696408,3723.6,3723.5,0.76853068]
[1762150749969,9.536,3723.6,3723.5,1.00403068]
[1762150750470,9.536,3723.6,3723.5,0.77100317]
[1762150750674,1.80696408,3724.1,3724.0,0.2973]
[1762150750875,11.60385254,3724.1,3724.0,0.2973]
[1762150751279,11.60385254,3724.1,3723.5,0.77100317]
[1762150751465,1.80696408,3723.6,3723.5,0.77100317]
[1762150751668,11.61613404,3723.6,3723.5,0.77100317]
[1762150751874,1.80696408,3723.6,3723.5,0.77100317]
[1762150752079,11.34496408,3723.6,3723.5,1.00650317]
[1762150752274,11.34596408,3723.6,3723.5,1.00650317]
[1762150752779,11.34596408,3723.6,3723.5,0.77100317]
[1762150753171,11.6159383,3723.6,3723.5,0.77100317]
[1762150754272,11.34596408,3723.6,3723.5,0.77100317]
[1762150754477,11.61600366,3723.6,3723.5,0.77100317]
[1762150755476,2.07700366,3723.6,3723.5,0.77100317]
[1762150755777,0.27003958,3723.6,3723.5,1.00650317]
[1762150755977,0.21649782,3724.8,3724.5,0.312]
[1762150756181,10.44838294,3724.7,3724.5,0.312]
[1762150756481,0.90938294,3724.6,3724.5,0.312]
[1762150758488,10.44938294,3724.6,3724.5,0.312]
[1762150759376,10.45020483,3724.6,3724.0,0.312]
[1762150759585,1.80696408,3724.2,3724.0,0.312]
[1762150759884,9.81097531,3724.1,3724.0,0.312]
[1762150760486,10.45296116,3724.1,3724.0,0.312]
[1762150763083,0.91296116,3724.1,3724.0,0.312]
[1762150763284,10.45296116,3724.1,3724.0,0.312]
[1762150763989,0.91296116,3724.1,3724.0,0.312]
[1762150764286,11.87512449,3724.1,3724.0,0.312]
[1762150764585,10.45296116,3724.1,3724.0,0.312]
[1762150765583,0.91296116,3724.1,3724.0,0.7711]
[1762150765793,8.95996116,3724.1,3724.0,0.7711]
[1762150766082,8.95996116,3724.1,3724.0,0.312]
[1762150768282,10.85226289,3724.1,3724.0,0.312]
[1762150769397,8.95996116,3724.1,3723.5,0.77100317]
[1762150769684,8.047,3724.1,3724.0,0.3059]
[1762150769889,8.96582912,3724.1,3724.0,0.3059]
[1762150771381,8.96582912,3724.1,3723.5,0.77100317]
[1762150771585,1.89574736,3723.8,3723.5,0.77100317]
[1762150771786,10.45982912,3723.7,3723.6,0.4943]
[1762150774393,10.45982912,3723.7,3723.5,0.77100317]
[1762150774590,0.91882912,3723.6,3723.5,1.26530317]
[1762150775997,10.45882912,3723.6,3723.5,1.26530317]
[1762150778201,0.91882912,3723.6,3723.5,1.26530317]
[1762150778386,9.54,3723.8,3723.6,0.4943]
[1762150778592,1.89574736,3724.5,3724.1,0.4943]
[1762150778792,1.89574736,3724.6,3724.4,0.4943]
[1762150778997,1.89574736,3724.6,3724.5,0.3059]
[1762150779196,0.4773,3724.6,3724.5,0.3059]
[1762150779491,0.4773,3724.6,3724.0,0.3059]
[1762150779492,11.91304736,3724.6,3724.0,0.3059]
[1762150779694,1.89574736,3724.5,3724.0,0.3059]
[1762150780092,1.89574736,3724.5,3724.4,0.4943]
[1762150780894,2.37304736,3724.5,3724.0,0.3059]
[1762150782488,11.43574736,3724.6,3724.4,0.4943]
[1762150782686,2.37304736,3724.6,3724.5,0.3059]
[1762150782892,1.89794627,3724.9,3724.8,0.4943]
[1762150783096,11.43694627,3724.9,3724.8,0.4943]
[1762150783302,9.54119891,3724.9,3724.8,0.4943]
[1762150783695,0.00219891,3724.9,3724.8,0.4943]
[1762150783896,9.54119891,3724.9,3724.8,0.4943]
[1762150785000,10.01849891,3724.9,3724.5,0.3059]
[1762150786311,0.5089,3724.6,3724.0,0.3059]
[1762150786608,0.00219891,3724.9,3724.5,0.8118]
[1762150786903,9.538,3724.8,3724.5,0.8118]
[1762150787111,0.00219891,3724.9,3724.8,0.5135]
[1762150787303,9.54019891,3724.9,3724.8,0.5135]
[1762150787806,0.00219891,3724.9,3724.8,0.5135]
[1762150788104,25.0,6244.0,3725.3,0.5135]
[1762150788105,3.635,3725.4,3725.3,0.5135]
[1762150789105,3.63714862,3725.4,3725.3,0.5135]
[1762150792311,0.00214862,3725.4,3725.3,0.5135]
[1762150795017,0.5089,3725.1,3724.5,0.2983]
[1762150795506,0.25684522,3725.0,3724.5,0.2983]
[1762150795706,0.00214862,3725.4,3724.5,0.2983]
[1762150795906,0.25685236,3725.3,3724.5,0.2983]
[1762150796114,0.25685236,3725.2,3724.5,0.2983]
[1762150796315,0.25685236,3725.1,3724.5,0.2983]
[1762150796515,0.25685236,3725.0,3724.5,0.2983]
[1762150796715,0.00214862,3725.4,3724.5,0.2983]
[1762150797017,0.88495593,3725.3,3724.5,0.2983]
[1762150797218,0.25695637,3725.2,3724.5,0.2983]
[1762150797416,0.25695637,3725.1,3724.5,0.2983]
[1762150797617,0.25695637,3725.0,3724.5,0.2983]
[1762150797817,0.00214862,3725.4,3724.5,0.2983]
[1762150798012,0.88499568,3725.3,3724.5,0.2983]
[1762150798218,0.00214862,3725.4,3724.5,0.2983]
[1762150798414,0.25698349,3725.3,3724.5,0.2983]
[1762150798622,0.25698349,3725.2,3724.5,0.2983]
[1762150798818,0.25698349,3725.1,3725.0,0.2983]
[1762150799316,0.25698349,3725.3,3725.0,0.2983]
[1762150799521,0.5089,3725.1,3724.5,0.2983]
[1762150799815,0.5089,3724.1,3723.5,0.77100317]
[1762150800010,0.5089,3724.1,3722.8,2.38905857]
[1762150800011,0.3142,3722.7,3722.6,1.92969285]
[1762150800212,2.163,3723.3,3722.5,0.2983]
[1762150800413,0.25694427,3723.2,3722.5,0.2983]
[1762150800612,2.37740148,3723.3,3722.5,0.2983]
[1762150800815,0.25694952,3723.2,3722.5,0.2983]
[1762150801119,0.00256311,3723.2,3723.0,0.2983]
[1762150802816,0.3142,3723.1,3722.5,0.30148682]
[1762150803325,2.25933737,3723.0,3722.5,0.00318682]
[1762150803518,0.00256311,3723.2,3722.5,0.00318682]
[1762150803725,0.25648332,3723.1,3722.5,0.00318682]
[1762150804024,0.25648332,3723.0,3722.5,0.00318682]
[1762150804319,8.374,3723.1,3722.5,0.00318682]
[1762150804520,0.00256311,3723.2,3723.1,0.5135]
[1762150805730,1.36,3724.3,3723.1,0.5135]
[1762150805924,1.36,3724.3,3723.6,0.2983]
[1762150806133,1.41900636,3725.4,3723.6,0.2983]
[1762150806134,2.00270567,3725.2,3723.6,0.2983]
[1762150806431,12.894,3725.9,3723.6,0.2983]
[1762150806432,9.21150129,3725.1,3723.6,0.2983]
[1762150806725,0.25650129,3725.0,3723.6,7.0103]
[1762150807033,8.172,3724.9,3723.6,7.0111]
[1762150807220,0.00300175,3725.1,3723.6,0.2983]
[1762150807527,0.00300175,3725.1,3724.8,0.2983]
[1762150807725,0.00300175,3725.1,3725.0,0.5135]
[1762150808733,0.00300175,3725.1,3724.8,0.2983]
[1762150809925,0.00300175,3725.1,3725.0,0.5135]
[1762150811029,0.00300175,3725.1,3724.8,0.2983]
[1762150811533,0.00300175,3725.1,3725.0,0.5135]
[1762150812334,2.00270567,3727.1,3725.4,0.2983]
[1762150812548,0.91021073,3727.0,3726.6,0.2983]
[1762150812835,0.27612136,3726.9,3726.8,0.5135]
[1762150813032,0.20994756,3727.6,3726.8,0.5135]
[1762150813237,2.00270567,3727.1,3726.6,0.2983]
[1762150813437,2.00479228,3727.1,3726.6,0.00316839]
[1762150813641,0.3168,3726.7,3726.6,0.00316839]
[1762150813850,0.59279804,3726.7,3726.6,0.00316839]
[1762150815146,1.22628359,3726.7,3726.6,0.00316839]
[1762150815742,1.22628359,3726.7,3726.0,0.2983]
[1762150815949,0.27599804,3726.6,3726.0,0.2983]
[1762150816247,2.00479228,3727.1,3726.0,0.2983]
[1762150816248,5.39099804,3726.5,3726.0,0.2983]
[1762150816548,0.27599804,3726.4,3726.0,0.2983]
[1762150816750,0.27599804,3726.3,3726.0,0.2983]
[1762150816949,5.115,3726.5,3726.0,0.30018959]
[1762150817150,0.27583426,3726.4,3726.0,0.30018959]
[1762150817349,0.00208661,3727.1,3726.0,0.30018959]
[1762150817551,7.238,3726.7,3726.0,0.30018959]
[1762150817750,0.27581288,3726.6,3726.0,0.30018959]
[1762150818452,0.27581288,3726.5,3726.0,0.30018959]
[1762150818755,9.533,3726.9,3726.0,0.30018959]
[1762150818941,0.27588807,3726.8,3726.0,0.30018959]
[1762150819142,0.27588807,3726.7,3726.0,0.30018959]
[1762150819347,0.27588807,3726.6,3726.0,0.30018959]
[1762150819550,0.27588807,3726.5,3726.0,0.30018959]
[1762150819749,0.27588807,3726.4,3726.0,0.30018959]
[1762150819952,9.533,3726.9,3726.0,0.30018959]
[1762150820148,0.27585535,3726.8,3726.0,0.30018959]
[1762150820349,0.00208661,3727.1,3726.6,0.8128]
[1762150820350,0.27585535,3726.7,3726.6,0.8128]
[1762150820551,0.00208661,3727.1,3726.6,0.8128]
[1762150820751,0.27587147,3727.0,3726.6,0.8128]
[1762150820953,0.27587147,3726.9,3726.6,0.8128]
[1762150821247,0.00208661,3727.1,3726.6,0.8128]
[1762150821450,1.41900636,3728.3,3727.0,0.5214]
[1762150821652,0.63328497,3728.2,3728.1,0.5214]
[1762150821955,5.088,3729.5,3728.1,0.5214]
[1762150822154,0.2760975,3729.4,3728.1,0.5214]
[1762150822448,2.00270567,3729.1,3727.8,0.2914]
[1762150822643,0.2760975,3729.0,3727.8,0.2914]
[1762150822843,0.2760975,3728.9,3727.8,0.2914]
[1762150823048,0.2760975,3728.8,3727.8,0.2914]
[1762150823242,2.00270567,3729.1,3727.8,0.2914]
[1762150823445,0.27560309,3729.0,3727.8,0.2914]
[1762150825148,2.00270567,3728.5,3727.8,0.2914]
[1762150827155,0.1891,3727.9,3727.2,0.2914]
[1762150827960,0.1891,3727.9,3727.8,0.2719]
[1762150829361,6.95670567,3728.5,3727.8,0.2719]
[1762150829560,0.27461532,3728.4,3727.8,0.2719]
[1762150829862,0.27461532,3728.3,3727.8,0.2719]
[1762150830058,0.1323,3727.9,3727.8,0.2719]
[1762150830259,0.1323,3727.9,3727.2,0.2914]
[1762150831262,6.95670567,3728.5,3727.8,0.2719]
[1762150831462,0.27480382,3728.4,3727.8,0.2719]
[1762150831765,0.27480382,3728.3,3727.8,0.2719]
[1762150831963,0.1323,3727.9,3727.2,0.2914]
[1762150832266,6.95670567,3728.5,3727.8,0.2719]
[1762150832561,0.27497714,3728.4,3727.8,0.2719]
[1762150832764,0.27497714,3728.3,3727.8,0.2719]
[1762150832961,0.27497714,3728.2,3727.8,0.2719]
[1762150833162,0.27497714,3728.1,3727.8,0.2719]
[1762150833467,0.27497714,3728.0,3727.8,0.2719]
[1762150833764,6.95670567,3728.5,3727.8,0.2719]
[1762150833963,6.95670567,3728.5,3727.2,0.2914]
[1762150833964,0.1323,3727.9,3727.2,0.2914]
[1762150834369,0.27562989,3727.8,3727.5,0.2719]
[1762150834669,0.27562989,3727.7,3727.6,0.4261]
[1762150836569,0.27562989,3727.7,3727.5,0.2719]
[1762150836769,0.27562989,3727.6,3727.5,0.2719]
[1762150837476,0.27562989,3728.4,3727.5,0.2719]
[1762150837678,0.91626528,3728.3,3727.5,0.2719]
[1762150837964,0.91626528,3728.2,3727.5,0.2719]
[1762150838173,1.04856528,3728.1,3727.5,0.2719]
[1762150838376,0.91626528,3728.0,3727.5,0.2719]
[1762150838669,0.91653913,3727.9,3727.5,0.2719]
[1762150838972,0.27562989,3727.8,3727.5,0.2719]
[1762150839273,0.27562989,3727.7,3727.5,0.2719]
[1762150839464,0.27562989,3727.6,3727.5,0.2719]
[1762150839660,0.27562989,3728.1,3727.5,0.2719]
[1762150839971,0.91683406,3728.0,3727.5,0.2719]
[1762150840166,0.91683406,3727.9,3727.5,0.2719]
[1762150840368,9.526,3728.2,3727.5,0.2719]
[1762150840369,0.91683406,3727.8,3727.5,0.2719]
[1762150840568,0.27562989,3727.7,3727.5,0.2719]
[1762150840768,0.27562989,3727.6,3727.5,0.698]
[1762150843772,0.27481853,3727.6,3727.5,0.698]
[1762150845566,0.91762625,3727.6,3727.5,0.698]
[1762150848576,0.91842288,3727.6,3727.5,0.698]
[1762150848878,1.05072288,3727.6,3727.5,0.2719]
[1762150849076,0.91842288,3727.6,3727.5,0.2719]
[1762150850779,0.049,3727.3,3727.2,0.2914]
[1762150850975,0.32461516,3727.3,3727.2,0.2914]
[1762150851480,0.96742288,3727.3,3727.2,0.2914]
[1762150852276,0.91842288,3727.3,3727.2,0.721]
[1762150859580,0.96742288,3727.3,3727.2,0.2914]
[1762150859781,0.91842288,3727.3,3727.2,0.721]
[1762150860974,2.288e-05,3727.3,3727.2,0.721]
[1762150861173,7.162,3727.7,3727.2,0.721]
[1762150861174,7.162,3727.7,3727.6,0.4296]
[1762150862182,1.41900636,3728.2,3727.6,0.4296]
[1762150862390,9.522,3728.1,3727.6,0.4296]
[1762150863680,9.522,3728.1,3728.0,0.6823]
[1762150864478,1.80664587,3728.3,3728.0,0.6823]
[1762150864682,0.4484,3728.1,3728.0,0.6823]
[1762150864878,0.4484,3727.3,3727.0,0.2527]
[1762150865077,9.9694,3727.3,3727.0,0.2527]
[1762150865277,9.9694,3727.3,3726.6,0.2914]
[1762150865278,0.4484,3727.1,3726.6,0.2914]
[1762150865477,0.4484,3726.7,3726.6,0.2914]
[1762150865683,0.00281134,3726.7,3726.6,0.721]
[1762150867189,1.41900636,3728.0,3727.6,0.4296]
[1762150867386,1.41900636,3728.1,3727.6,0.4296]
[1762150867589,1.41900636,3728.5,3728.0,0.6823]
[1762150867884,1.41900636,3728.6,3728.0,0.6823]
[1762150868077,9.521,3728.5,3728.4,0.4296]
[1762150868686,9.52358792,3728.5,3728.4,0.4296]
[1762150869281,0.4484,3727.6,3727.0,0.2527]
[1762150869895,9.52,3727.7,3727.6,0.4296]
[1762150870592,0.4484,3727.6,3727.0,0.2527]
[1762150870981,2.05744587,3727.5,3725.9,3.575]
[1762150871491,2.05744587,3727.5,3725.5,3.8277]
[1762150871686,2.05744587,3727.5,3725.8,0.48316]
[1762150871990,2.05744587,3727.5,3725.5,3.8277]
[1762150872191,2.05744587,3727.5,3725.5,0.2527]
[1762150872489,2.05744587,3727.5,3725.5,0.7359]
[1762150873091,0.93514929,3727.4,3725.5,0.7359]
[1762150873289,0.93514929,3727.3,3725.5,0.7359]
[1762150873478,0.93514929,3727.2,3725.5,0.2527]
[1762150873681,10.45414929,3727.1,3727.0,0.6823]
[1762150874189,0.2710767,3727.1,3727.0,0.6823]
[1762150874391,3.462,3727.8,3727.0,0.6823]
[1762150874590,0.93517971,3727.7,3727.5,0.2527]
[1762150874889,0.27108407,3727.6,3727.5,0.6823]
[1762150877398,0.93514445,3727.6,3727.5,0.6823]
[1762150877692,0.93514445,3727.6,3727.0,0.2527]
[1762150877892,0.93514445,3727.5,3727.0,0.2527]
[1762150878096,0.27108407,3727.4,3727.3,0.4094]